Workbook

Sheet ANOVA
B1: Skupina | H1: Počet skupin | J1: 5
A2: ZO | B2: 1 | C2: 2 | D2: 3 | E2: 4 | F2: 5 | H2: Počet lidí ve skupině | J2: 20 | P2: Pomocný výpočet pro SSuvnitř skupin | V2: Pomocný výpočet pro SScelkem
A3: 1 | B3: =ROUND(_xlfn.NORM.S.INV(RAND())*$J$6+$J$5,0) -> 33 | C3: =ROUND(_xlfn.NORM.S.INV(RAND())*$J$6+$J$5+$J$8*(C$2-1),0) -> 49 | D3: =ROUND(_xlfn.NORM.S.INV(RAND())*$J$6+$J$5+$J$8*(D$2-1),0) -> 53 | E3: 39 | F3: 36 | P3: =(B3-B$25)^2 -> 222.01 | Q3: =(C3-C$25)^2 -> 9.61 | R3: 5.76 | S3: 51.84 | T3: 203.0625 | V3: =(B3-$G$25)^2 -> 269.2881 | W3: =(C3-$G$25)^2 -> 0.1681 | X3: 12.8881 | Y3: 108.3681 | Z3: =(F3-$G$25)^2 -> 179.8281
A4: 2 | B4: =ROUND(_xlfn.NORM.S.INV(RAND())*$J$6+$J$5,0) -> 44 | C4: =ROUND(_xlfn.NORM.S.INV(RAND())*$J$6+$J$5+$J$8*(C$2-1),0) -> 51 | D4: 60 | E4: 67 | F4: 49 | H4: Rozložení proměnné (normální) | P4: =(B4-B$25)^2 -> 15.21 | Q4: 1.21 | R4: 88.36 | S4: 432.64 | T4: 1.5625 | V4: =(B4-$G$25)^2 -> 29.2681 | W4: =(C4-$G$25)^2 -> 2.5281 | X4: =(D4-$G$25)^2 -> 112.1481 | Y4: =(E4-$G$25)^2 -> 309.4081 | Z4: =(F4-$G$25)^2 -> 0.1681
A5: 3 | B5: 31 | C5: 58 | D5: 37 | E5: 55 | F5: 63 | I5: m= | J5: 50 | P5: 285.61 | Q5: 34.81 | R5: 184.96 | S5: 77.44 | T5: 162.5625 | V5: 338.9281 | W5: 73.7881 | X5: 154.0081 | Y5: 31.2481 | Z5: 184.6881
A6: 4 | B6: 47 | C6: 45 | D6: 62 | E6: 31 | F6: 57 | I6: s= | J6: 10 | P6: 0.81 | Q6: 50.41 | R6: 129.96 | S6: 231.04 | T6: 45.5625 | V6: 5.8081 | W6: 19.4481 | X6: 158.5081 | Y6: 338.9281 | Z6: 57.6081
A7: 5 | B7: 59 | C7: 42 | D7: 61 | E7: 50 | F7: 48 | P7: 123.21 | Q7: 102.01 | R7: 108.16 | S7: 14.44 | T7: 5.0625 | V7: 91.9681 | W7: 54.9081 | X7: 134.3281 | Y7: 0.3481 | Z7: 1.9881
A8: 6 | B8: 42 | C8: 58 | D8: 46 | E8: 48 | F8: 33 | H8: Rozdíly mezi skupinami | J8: 0 | P8: 34.81 | Q8: 34.81 | R8: 21.16 | S8: 3.24 | T8: 297.5625 | V8: 54.9081 | W8: 73.7881 | X8: 11.6281 | Y8: 1.9881 | Z8: 269.2881
A9: 7 | B9: 55 | C9: 59 | D9: 45 | E9: 54 | F9: 41 | P9: 50.41 | Q9: 47.61 | R9: 31.36 | S9: 60.84 | T9: 85.5625 | V9: 31.2481 | W9: 91.9681 | X9: 19.4481 | Y9: 21.0681 | Z9: 70.7281
A10: 8 | B10: 76 | C10: 51 | D10: 59 | E10: 39 | F10: 41 | P10: 789.61 | Q10: 1.21 | R10: 70.56 | S10: 51.84 | T10: 85.5625 | V10: 707.0281 | W10: 2.5281 | X10: 91.9681 | Y10: 108.3681 | Z10: 70.7281
A11: 9 | B11: 51 | C11: 53 | D11: 47 | E11: 36 | F11: 53 | P11: 9.61 | Q11: 0.81 | R11: 12.96 | S11: 104.04 | T11: 7.5625 | V11: 2.5281 | W11: 12.8881 | X11: 5.8081 | Y11: 179.8281 | Z11: 12.8881
A12: 10 | B12: 36 | C12: 50 | D12: 46 | E12: 55 | F12: 63 | I12: ANOVA | P12: 141.61 | Q12: 4.41 | R12: 21.16 | S12: 77.44 | T12: 162.5625 | V12: 179.8281 | W12: 0.3481 | X12: 11.6281 | Y12: 31.2481 | Z12: 184.6881
A13: 11 | B13: 45 | C13: 44 | D13: 46 | E13: 44 | F13: 42 | I13: Zdroj rozptylu | J13: Suma čtverců | K13: stupně volnosti | L13: MS | M13: F | N13: p | P13: 8.41 | Q13: 65.61 | R13: 21.16 | S13: 4.84 | T13: 68.0625 | V13: 19.4481 | W13: 29.2681 | X13: 11.6281 | Y13: 29.2681 | Z13: 54.9081
A14: 12 | B14: 61 | C14: 50 | D14: 56 | E14: 41 | F14: 66 | I14: Mezi skupinami | J14: =J2*((B25-G25)^2+(C25-G25)^2+(D25-G25)^2+(E25-G25)^2+(F25-G25)^2) -> 438.84 | K14: =J1-1 -> 4 | L14: =J14/K14 -> 109.71 | M14: =L14/L15 -> 1.169832816 | N14: =1-_xlfn.F.DIST(M14,K14,K15,1) -> 0.3290851509 | P14: 171.61 | Q14: 4.41 | R14: 29.16 | S14: 27.04 | T14: 248.0625 | V14: 134.3281 | W14: 0.3481 | X14: 43.4281 | Y14: 70.7281 | Z14: 275.2281
A15: 13 | B15: 41 | C15: 66 | D15: 55 | E15: 34 | F15: 61 | I15: Uvnitř skupin | J15: =SUM(P3:T22) -> 8909.35 | K15: =J1*J2-J1 -> 95 | L15: =J15/K15 -> 93.78263158 | P15: 47.61 | Q15: 193.21 | R15: 19.36 | S15: 148.84 | T15: 115.5625 | V15: 70.7281 | W15: 275.2281 | X15: 31.2481 | Y15: 237.4681 | Z15: 134.3281
A16: 14 | B16: 64 | C16: 58 | D16: 49 | E16: 35 | F16: 49 | I16: Celkem | J16: =SUM(V3:Z22) -> 9348.19 | K16: =J1*J2-1 -> 99 | L16: =J16/K16 -> 94.42616162 | P16: 259.21 | Q16: 34.81 | R16: 2.56 | S16: 125.44 | T16: 1.5625 | V16: 212.8681 | W16: 73.7881 | X16: 0.1681 | Y16: 207.6481 | Z16: 0.1681
A17: 15 | B17: 19 | C17: 55 | D17: 45 | E17: 45 | F17: 60 | P17: 835.21 | Q17: 8.41 | R17: 31.36 | S17: 1.44 | T17: 95.0625 | V17: 924.7681 | W17: 31.2481 | X17: 19.4481 | Y17: 19.4481 | Z17: 112.1481
A18: 16 | B18: 43 | C18: 47 | D18: 52 | E18: 48 | F18: 40 | P18: 24.01 | Q18: 26.01 | R18: 1.96 | S18: 3.24 | T18: 105.0625 | V18: 41.0881 | W18: 5.8081 | X18: 6.7081 | Y18: 1.9881 | Z18: 88.5481
A19: 17 | B19: 42 | C19: 54 | D19: 40 | E19: 37 | F19: 42 | P19: 34.81 | Q19: =(C19-C$25)^2 -> 3.61 | R19: =(D19-D$25)^2 -> 112.36 | S19: =(E19-E$25)^2 -> 84.64 | T19: =(F19-F$25)^2 -> 68.0625 | V19: 54.9081 | W19: 21.0681 | X19: 88.5481 | Y19: 154.0081 | Z19: 54.9081
A20: 18 | B20: 63 | C20: 45 | D20: 57 | E20: 57 | F20: 56 | P20: 228.01 | Q20: 50.41 | R20: 40.96 | S20: 116.64 | T20: 33.0625 | V20: 184.6881 | W20: 19.4481 | X20: 57.6081 | Y20: 57.6081 | Z20: 43.4281
A21: 19 | B21: 53 | C21: 57 | D21: 45 | E21: 42 | F21: 48 | P21: 26.01 | Q21: 24.01 | R21: 31.36 | S21: 17.64 | T21: 5.0625 | V21: 12.8881 | W21: 57.6081 | X21: 19.4481 | Y21: 54.9081 | Z21: 1.9881
A22: 20 | B22: 53 | C22: 50 | D22: 51 | E22: 67 | F22: 57 | P22: 26.01 | Q22: 4.41 | R22: 0.16 | S22: 432.64 | T22: 45.5625 | V22: 12.8881 | W22: 0.3481 | X22: 2.5281 | Y22: 309.4081 | Z22: 57.6081
A24: Statistiky pro jednotlivé skupiny | G24: Celkem | P24: =SUM(P3:T22) -> 8909.35
A25: m | B25: =AVERAGE(B3:B22) -> 47.9 | C25: =AVERAGE(C3:C22) -> 52.1 | D25: =AVERAGE(D3:D22) -> 50.6 | E25: 46.2 | F25: 50.25 | G25: =AVERAGE(B3:F22) -> 49.41 | J25: sm | K25: =_xlfn.STDEV.S(B25:F25) -> 2.342114429
A26: s | B26: =STDEV(B3:B22) -> 13.24625071 | C26: =STDEV(C3:C22) -> 6.077568766 | D26: =STDEV(D3:D22) -> 7.125934842 | E26: 10.43072385 | F26: 9.845517281 | G26: =STDEV(B3:F22) -> 9.717312469 | J26: N | K26: 20
A27: s2 | B27: =_xlfn.VAR.S(B3:B22) -> 175.4631579 | C27: =_xlfn.VAR.S(C3:C22) -> 36.93684211 | D27: 50.77894737 | E27: 108.8 | F27: 96.93421053 | G27: =_xlfn.VAR.S(B3:F22) -> 94.42616162 | J27: SD | K27: =K25*SQRT(K26) -> 10.47425415
J28: var | K28: =K27*K27 -> 109.71

Sheet F
A1: Tady lze shromažďovat F z různých náhodných instancí dat. Vyberte buňku, která bude první buňkou sloupce, do kterého se budou postupně kopírovat F z prvního listu, a mačkejte Ctrl+Shif+F.
A2: Při každém stisknutí Ctrl+Shif+F se do aktivní buňky zkopíruje F z vedlejšího listu a kurzor se posune o buňku dolů.
A3: F (d=0) | B3: F(d=1) | C3: F(d=5)
A4: 0.7060880594 | B4: 2.635726974 | C4: 20.64962048 | L4: Následující tabulka četností počítá jen s F v prvním sloupci. Ukazuje, že F získaná opakovaným taháním náhodných vzorků z populace, kde nejsou žádné rozdíly mezi skupinami, mají rozložení shodné s teoretickým rozložením popsaným funkcí F.DIST.
A5: 0.09594197576 | B5: 2.72579386 | C5: 8.252469123 | L5: F | M5: četnost | N5: cum % | O5: F.DIST
A6: 0.2242602455 | B6: 2.770502466 | C6: 8.709071773 | L6: 0 | M6: =FREQUENCY(A4:A1800,L6:L28) -> 0
A7: 0.6283577705 | B7: 0.9274915562 | C7: 9.702927839 | L7: 0.2 | M7: 16 | N7: =SUM($M$6:M7)/SUM($M$6:$M$28) -> 0.04481792717 | O7: =_xlfn.F.DIST(L7,4,95,1) -> 0.06222171013
A8: 0.995528959 | B8: 1.059649236 | C8: 16.15274101 | L8: 0.4 | M8: 42 | N8: =SUM($M$6:M8)/SUM($M$6:$M$28) -> 0.162464986 | O8: =_xlfn.F.DIST(L8,4,95,1) -> 0.191795226
A9: 0.8474146137 | B9: 0.2519841371 | C9: 8.187796683 | L9: 0.6 | M9: 64 | N9: =SUM($M$6:M9)/SUM($M$6:$M$28) -> 0.3417366947 | O9: 0.3364604322
A10: 1.839088422 | B10: 0.1529821794 | C10: 19.84671738 | L10: 0.8 | M10: 46 | N10: =SUM($M$6:M10)/SUM($M$6:$M$28) -> 0.4705882353 | O10: 0.471857157
A11: 0.07523414213 | B11: 1.991422228 | C11: 12.40833069 | L11: 1 | M11: 47 | N11: =SUM($M$6:M11)/SUM($M$6:$M$28) -> 0.6022408964 | O11: 0.5884125196
A12: 1.37077371 | B12: 0.5915879583 | C12: 13.45661475 | L12: 1.2 | M12: 25 | N12: =SUM($M$6:M12)/SUM($M$6:$M$28) -> 0.6722689076 | O12: 0.6840277462
A13: 0.2173809438 | B13: 5.173702574 | C13: 23.39398991 | L13: 1.4 | M13: 28 | N13: =SUM($M$6:M13)/SUM($M$6:$M$28) -> 0.7507002801 | O13: 0.7600826549
A14: 0.733563984 | B14: 0.3542047792 | C14: 9.956471415 | L14: 1.6 | M14: 27 | N14: =SUM($M$6:M14)/SUM($M$6:$M$28) -> 0.8263305322 | O14: 0.8193182958
A15: 0.07263731621 | B15: 3.407921756 | C15: 7.617467467 | L15: 1.8 | M15: 15 | N15: =SUM($M$6:M15)/SUM($M$6:$M$28) -> 0.8683473389 | O15: 0.8647674121
A16: 0.6676241404 | B16: 0.312106533 | C16: 12.78359295 | L16: 2 | M16: 12 | N16: =SUM($M$6:M16)/SUM($M$6:$M$28) -> 0.9019607843 | O16: 0.8992574397
A17: 0.2916644573 | B17: 2.140820139 | C17: 17.57469084 | L17: 2.2 | M17: 11 | N17: =SUM($M$6:M17)/SUM($M$6:$M$28) -> 0.9327731092 | O17: 0.9252168627
A18: 1.420224145 | B18: 2.27753065 | C18: 15.4855816 | L18: 2.4 | M18: 4 | N18: =SUM($M$6:M18)/SUM($M$6:$M$28) -> 0.943977591 | O18: 0.9446347016
A19: 0.8396570249 | B19: 1.197077777 | C19: 11.63955642 | L19: 2.6 | M19: 5 | N19: =SUM($M$6:M19)/SUM($M$6:$M$28) -> 0.9579831933 | O19: 0.9590910472
A20: 1.165280779 | B20: 2.015740276 | C20: 22.09558763 | L20: 2.8 | M20: 3 | N20: =SUM($M$6:M20)/SUM($M$6:$M$28) -> 0.9663865546 | O20: 0.9698151523
A21: 0.3068722399 | B21: 1.472334658 | C21: 13.66118765 | L21: 3 | M21: 3 | N21: =SUM($M$6:M21)/SUM($M$6:$M$28) -> 0.974789916 | O21: 0.9777491451
A22: 0.8812600294 | B22: 0.513875667 | C22: 11.90316127 | L22: 3.2 | M22: 3 | N22: =SUM($M$6:M22)/SUM($M$6:$M$28) -> 0.9831932773 | O22: 0.9836072036
A23: 2.138233358 | B23: 1.26624383 | C23: 9.463539757 | L23: 3.4 | M23: 1 | N23: =SUM($M$6:M23)/SUM($M$6:$M$28) -> 0.9859943978 | O23: 0.9879262681
A24: 0.7700865784 | B24: 3.200813365 | C24: 16.7804209 | L24: 3.6 | M24: 1 | N24: =SUM($M$6:M24)/SUM($M$6:$M$28) -> 0.9887955182 | O24: 0.9911075111
A25: 0.6785714286 | B25: 2.337967602 | C25: 20.41911079 | L25: 3.8 | M25: 2 | N25: =SUM($M$6:M25)/SUM($M$6:$M$28) -> 0.9943977591 | O25: 0.9934492409
A26: 0.3710244715 | B26: 2.155581087 | C26: 14.81251843 | L26: 4 | M26: 0 | N26: =SUM($M$6:M26)/SUM($M$6:$M$28) -> 0.9943977591 | O26: 0.9951724705
A27: 0.9187651271 | B27: 2.373507212 | C27: 14.24143603 | L27: 4.2 | M27: 0 | N27: =SUM($M$6:M27)/SUM($M$6:$M$28) -> 0.9943977591 | O27: 0.9964404941
A28: 3.107909457 | B28: 0.5635312704 | C28: 11.81590893 | L28: 4.4 | M28: 2 | N28: =SUM($M$6:M28)/SUM($M$6:$M$28) -> 1 | O28: 0.9973737115
A29: 0.9809339204 | B29: 0.9095869081 | C29: 13.93735038
A30: 0.854795936 | B30: 1.621033977 | C30: 6.237337386
A31: 0.3298730157 | B31: 2.954654575 | C31: 14.97770358
A32: 0.4243576939 | B32: 0.2710947109 | C32: 17.81159749
A33: 5.456111426 | B33: 2.317905559 | C33: 15.67826503
A34: 0.7223157419 | B34: 2.559224319 | C34: 16.1502092
A35: 1.19230681 | B35: 0.7726079397 | C35: 5.578142462
A36: 1.333692782 | B36: 0.3019299658 | C36: 14.75885244
A37: 0.7483303903 | B37: 1.118356578 | C37: 8.888919629
A38: 1.19646099 | B38: 1.527148377 | C38: 12.00893121
A39: 0.4807084677 | B39: 0.2983228695 | C39: 13.48255606
A40: 0.9654061837 | B40: 1.321156904 | C40: 16.85130361
A41: 0.8204923719 | B41: 2.227144425 | C41: 11.31591739
A42: 1.586486601 | B42: 2.812575317 | C42: 8.878956666
A43: 1.701913161 | B43: 1.102493261 | C43: 11.95904328
A44: 2.57726638 | B44: 0.8325434475 | C44: 17.69600374
A45: 2.01030246 | B45: 1.667237501 | C45: 16.43046442
A46: 0.5843931435 | B46: 1.477178146 | C46: 14.8388401
A47: 1.296214287 | B47: 1.680289129 | C47: 25.5709496
A48: 0.5288472166 | B48: 0.5382085327 | C48: 8.779108282
A49: 1.522240423 | B49: 1.013345828 | C49: 9.110470667
A50: 0.6128425509 | B50: 2.350997011 | C50: 13.72452879
A51: 0.5026642931 | B51: 1.358630613 | C51: 15.04903532
A52: 0.8556727198 | B52: 4.765935499 | C52: 12.18586969
A53: 3.652787501 | B53: 1.301835347 | C53: 12.46894032
A54: 0.5614440229 | B54: 0.9035387933 | C54: 11.43626957
A55: 0.6794743846 | B55: 1.848426476 | C55: 16.96368972
A56: 1.550518026 | B56: 1.272326319
A57: 1.330883386 | B57: 3.094521199
A58: 1.539671108 | B58: 5.019988839
A59: 2.140345974 | B59: 0.6741986012
A60: 0.4668280331 | B60: 1.089023871
A61: 1.465630039 | B61: 1.946402622
A62: 0.6193169894 | B62: 1.294279062
A63: 0.2429984266
A64: 0.9433005144
A65: 0.5613148207
A66: 0.570461752
A67: 0.4608334316
A68: 0.8501311791
A69: 0.4259298732
A70: 1.023378623
A71: 0.4822174067
A72: 4.230187488
A73: 0.890640546
A74: 1.13033693
A75: 0.391468966
A76: 0.5633241181
A77: 0.07489128088
A78: 0.7979056767
A79: 0.6841669923
A80: 4.251257827
A81: 1.622103953
A82: 0.9338133811
A83: 0.4158253845
A84: 0.8334479365
A85: 1.901775274
A86: 0.8216933734
A87: 3.091581126
A88: 0.5688339691
A89: 1.277895634
A90: 2.09586555
A91: 0.3758861326
A92: 0.2891233096
A93: 1.07983408
A94: 0.6446061459
A95: 0.6497601498
A96: 0.1690908019
A97: 0.7123717267
A98: 0.1290501988
A99: 0.5913637537
A100: 0.4582318536
A101: 0.6303825658
A102: 0.6729296576
A103: 0.2846328251
A104: 1.071764735
A105: 0.4595910002
A106: 1.348545243
A107: 0.3492185134
A108: 0.4917295535
A109: 0.9372876903
A110: 1.829332162
A111: 0.2939390821
A112: 0.533666121
A113: 0.8021058177
A114: 0.5423105617
A115: 1.366043685
A116: 0.9020362479
A117: 2.450543057
A118: 0.435441019
A119: 2.076212793
A120: 0.3490434115
A121: 2.665626083
A122: 0.5710909217
A123: 2.878823505
A124: 0.2975862949
A125: 1.061473468
A126: 0.3307967502
A127: 0.3100527624
A128: 1.090791005
A129: 0.7973938199
A130: 0.2080690634
A131: 0.465353662
A132: 1.825451944
A133: 0.4542411601
A134: 1.411651796
A135: 0.4580793299
A136: 0.5098858942
A137: 0.5590792901
A138: 0.7413334111
A139: 2.134906968
A140: 1.62191154
A141: 0.5924291893
A142: 0.3296951162
A143: 0.7194183087
A144: 0.4839007305
A145: 0.272854877
A146: 1.608129333
A147: 1.515204644
A148: 0.9434204588
A149: 1.24778646
A150: 0.4097677172
A151: 1.422070986
A152: 1.340681586
A153: 1.254562642
A154: 0.4491900515
A155: 0.6644300246
A156: 1.869095499
A157: 2.775760555
A158: 0.7413313953
A159: 0.6725877166
A160: 1.813420554
A161: 1.310320921
A162: 1.611588558
A163: 1.449160977
A164: 0.9320005584
A165: 0.4503072815
A166: 0.6637438761
A167: 0.6355908831
A168: 0.5154681153
A169: 0.5368347789
A170: 0.8912914707
A171: 0.4924333606
A172: 1.757813428
A173: 0.9810633264
A174: 1.132807439
A175: 2.009752193
A176: 1.635249505
A177: 0.3720899019
A178: 1.908634749
A179: 1.085338643
A180: 0.3989938513
A181: 2.222668339
A182: 0.8382405858
A183: 1.250301814
A184: 1.261416598
A185: 0.3400290948
A186: 1.519424823
A187: 2.016876187
A188: 1.286691629
A189: 0.6626030896
A190: 0.691808514
A191: 1.748970718
A192: 1.26401225
A193: 1.768728074
A194: 2.613959674
A195: 0.4989308547
A196: 0.2211464394
A197: 0.9579984576
A198: 0.5103907164
A199: 1.552802666
A200: 0.5176427514
... 161 more rows

Sheet kopie aktuálních dat pro SPSS
A1: =ANOVA!B3 -> 33 | B1: 1
A2: =ANOVA!B4 -> 44 | B2: 1
A3: =ANOVA!B5 -> 31 | B3: 1
A4: =ANOVA!B6 -> 47 | B4: 1
A5: =ANOVA!B7 -> 59 | B5: 1
A6: =ANOVA!B8 -> 42 | B6: 1
A7: =ANOVA!B9 -> 55 | B7: 1
A8: =ANOVA!B10 -> 76 | B8: 1
A9: =ANOVA!B11 -> 51 | B9: 1
A10: =ANOVA!B12 -> 36 | B10: 1
A11: =ANOVA!B13 -> 45 | B11: 1
A12: =ANOVA!B14 -> 61 | B12: 1
A13: =ANOVA!B15 -> 41 | B13: 1
A14: =ANOVA!B16 -> 64 | B14: 1
A15: =ANOVA!B17 -> 19 | B15: 1
A16: =ANOVA!B18 -> 43 | B16: 1
A17: =ANOVA!B19 -> 42 | B17: 1
A18: =ANOVA!B20 -> 63 | B18: 1
A19: =ANOVA!B21 -> 53 | B19: 1
A20: =ANOVA!B22 -> 53 | B20: 1
A21: =ANOVA!C3 -> 49 | B21: 2
A22: =ANOVA!C4 -> 51 | B22: 2
A23: =ANOVA!C5 -> 58 | B23: 2
A24: =ANOVA!C6 -> 45 | B24: 2
A25: =ANOVA!C7 -> 42 | B25: 2
A26: =ANOVA!C8 -> 58 | B26: 2
A27: =ANOVA!C9 -> 59 | B27: 2
A28: =ANOVA!C10 -> 51 | B28: 2
A29: =ANOVA!C11 -> 53 | B29: 2
A30: =ANOVA!C12 -> 50 | B30: 2
A31: =ANOVA!C13 -> 44 | B31: 2
A32: =ANOVA!C14 -> 50 | B32: 2
A33: =ANOVA!C15 -> 66 | B33: 2
A34: =ANOVA!C16 -> 58 | B34: 2
A35: =ANOVA!C17 -> 55 | B35: 2
A36: =ANOVA!C18 -> 47 | B36: 2
A37: =ANOVA!C19 -> 54 | B37: 2
A38: =ANOVA!C20 -> 45 | B38: 2
A39: =ANOVA!C21 -> 57 | B39: 2
A40: =ANOVA!C22 -> 50 | B40: 2
A41: =ANOVA!D3 -> 53 | B41: 3
A42: =ANOVA!D4 -> 60 | B42: 3
A43: =ANOVA!D5 -> 37 | B43: 3
A44: =ANOVA!D6 -> 62 | B44: 3
A45: =ANOVA!D7 -> 61 | B45: 3
A46: =ANOVA!D8 -> 46 | B46: 3
A47: =ANOVA!D9 -> 45 | B47: 3
A48: =ANOVA!D10 -> 59 | B48: 3
A49: =ANOVA!D11 -> 47 | B49: 3
A50: =ANOVA!D12 -> 46 | B50: 3
A51: =ANOVA!D13 -> 46 | B51: 3
A52: =ANOVA!D14 -> 56 | B52: 3
A53: =ANOVA!D15 -> 55 | B53: 3
A54: =ANOVA!D16 -> 49 | B54: 3
A55: =ANOVA!D17 -> 45 | B55: 3
A56: =ANOVA!D18 -> 52 | B56: 3
A57: =ANOVA!D19 -> 40 | B57: 3
A58: =ANOVA!D20 -> 57 | B58: 3
A59: =ANOVA!D21 -> 45 | B59: 3
A60: =ANOVA!D22 -> 51 | B60: 3
A61: =ANOVA!E3 -> 39 | B61: 4
A62: =ANOVA!E4 -> 67 | B62: 4
A63: =ANOVA!E5 -> 55 | B63: 4
A64: =ANOVA!E6 -> 31 | B64: 4
A65: =ANOVA!E7 -> 50 | B65: 4
A66: =ANOVA!E8 -> 48 | B66: 4
A67: =ANOVA!E9 -> 54 | B67: 4
A68: =ANOVA!E10 -> 39 | B68: 4
A69: =ANOVA!E11 -> 36 | B69: 4
A70: =ANOVA!E12 -> 55 | B70: 4
A71: =ANOVA!E13 -> 44 | B71: 4
A72: =ANOVA!E14 -> 41 | B72: 4
A73: =ANOVA!E15 -> 34 | B73: 4
A74: =ANOVA!E16 -> 35 | B74: 4
A75: =ANOVA!E17 -> 45 | B75: 4
A76: =ANOVA!E18 -> 48 | B76: 4
A77: =ANOVA!E19 -> 37 | B77: 4
A78: =ANOVA!E20 -> 57 | B78: 4
A79: =ANOVA!E21 -> 42 | B79: 4
A80: =ANOVA!E22 -> 67 | B80: 4
A81: =ANOVA!F3 -> 36 | B81: 5
A82: =ANOVA!F4 -> 49 | B82: 5
A83: =ANOVA!F5 -> 63 | B83: 5
A84: =ANOVA!F6 -> 57 | B84: 5
A85: =ANOVA!F7 -> 48 | B85: 5
A86: =ANOVA!F8 -> 33 | B86: 5
A87: =ANOVA!F9 -> 41 | B87: 5
A88: =ANOVA!F10 -> 41 | B88: 5
A89: =ANOVA!F11 -> 53 | B89: 5
A90: =ANOVA!F12 -> 63 | B90: 5
A91: =ANOVA!F13 -> 42 | B91: 5
A92: =ANOVA!F14 -> 66 | B92: 5
A93: =ANOVA!F15 -> 61 | B93: 5
A94: =ANOVA!F16 -> 49 | B94: 5
A95: =ANOVA!F17 -> 60 | B95: 5
A96: =ANOVA!F18 -> 40 | B96: 5
A97: =ANOVA!F19 -> 42 | B97: 5
A98: =ANOVA!F20 -> 56 | B98: 5
A99: =ANOVA!F21 -> 48 | B99: 5
A100: =ANOVA!F22 -> 57 | B100: 5
